[Event "*** Titled Tuesday Blitz"]
[Site "Chess.com"]
[Date "2019.11.05"]
[Round "4"]
[White "AyelenChess"]
[Black "MissingLife"]
[Result "1-0"]
[WhiteElo "2044"]
[BlackElo "2401"]
[TimeControl "180+2"]
[EndTime "13:52:34 PST"]
[Termination "AyelenChess won by checkmate"]

1. e4 {[%clk 0:03:01.9]} 1... e6 {[%clk 0:02:59.4]} 2. d4 {[%clk 0:03:03.1]}
2... d5 {[%clk 0:03:00.9]} 3. Nc3 {[%clk 0:03:03.8]} 3... Bb4 {[%clk 0:03:01.7]}
4. e5 {[%clk 0:02:57]} 4... Ne7 {[%clk 0:03:02.4]} 5. a3 {[%clk 0:02:53.4]} 5...
Bxc3+ {[%clk 0:03:03.2]} 6. bxc3 {[%clk 0:02:55.3]} 6... c5 {[%clk 0:03:03.9]}
7. Qg4 {[%clk 0:02:56.5]} 7... Nf5 {[%clk 0:03:02.7]} 8. Bd3 {[%clk 0:02:36.2]}
8... h5 {[%clk 0:03:01.7]} 9. Qf4 {[%clk 0:02:35.4]} 9... g6 {[%clk 0:02:56.7]}
10. Ne2 {[%clk 0:02:31.8]} 10... Nc6 {[%clk 0:02:56.3]} 11. O-O {[%clk
0:02:19.5]} 11... c4 {[%clk 0:02:52.7]} 12. Bxf5 {[%clk 0:02:18.6]} 12... gxf5
{[%clk 0:02:53.7]} 13. Qg5 {[%clk 0:02:14]} 13... Qxg5 {[%clk 0:02:49.4]} 14.
Bxg5 {[%clk 0:02:15.9]} 14... Rg8 {[%clk 0:02:50.5]} 15. h4 {[%clk 0:02:14.2]}
15... Bd7 {[%clk 0:02:51.2]} 16. Nf4 {[%clk 0:02:11.9]} 16... Rh8 {[%clk
0:02:51]} 17. Rab1 {[%clk 0:02:03]} 17... b6 {[%clk 0:02:52]} 18. Rfe1 {[%clk
0:01:59.8]} 18... Rb8 {[%clk 0:02:50.8]} 19. Re3 {[%clk 0:02:00.2]} 19... a6
{[%clk 0:02:50.3]} 20. Rg3 {[%clk 0:01:59.7]} 20... Ne7 {[%clk 0:02:42.5]} 21.
Bf6 {[%clk 0:01:59.9]} 21... Rg8 {[%clk 0:02:33.1]} 22. Rxg8+ {[%clk 0:01:41]}
22... Nxg8 {[%clk 0:02:35]} 23. Nxh5 {[%clk 0:01:42.4]} 23... Ba4 {[%clk
0:02:35.6]} 24. Rc1 {[%clk 0:01:33.1]} 24... b5 {[%clk 0:02:30]} 25. Bg7 {[%clk
0:01:25.1]} 25... f6 {[%clk 0:01:56.2]} 26. Bxf6 {[%clk 0:01:15.8]} 26... Kf7
{[%clk 0:01:54.6]} 27. Bg5 {[%clk 0:01:15.1]} 27... a5 {[%clk 0:01:55.4]} 28.
Nf4 {[%clk 0:01:10.3]} 28... b4 {[%clk 0:01:52.7]} 29. axb4 {[%clk 0:01:11.9]}
29... axb4 {[%clk 0:01:54.6]} 30. cxb4 {[%clk 0:01:13.5]} 30... Rxb4 {[%clk
0:01:54.5]} 31. h5 {[%clk 0:01:14.3]} 31... c3 {[%clk 0:01:55]} 32. h6 {[%clk
0:00:56.2]} 32... Nxh6 {[%clk 0:01:49.7]} 33. Bxh6 {[%clk 0:00:58.1]} 33... Rxd4
{[%clk 0:01:50.8]} 34. Ne2 {[%clk 0:00:55]} 34... Rc4 {[%clk 0:01:48.2]} 35. Nf4
{[%clk 0:00:51.6]} 35... Re4 {[%clk 0:01:45.9]} 36. Ra1 {[%clk 0:00:33.1]} 36...
Ke7 {[%clk 0:01:38.9]} 37. Bg5+ {[%clk 0:00:28]} 37... Kd7 {[%clk 0:01:39.9]}
38. Nd3 {[%clk 0:00:27.4]} 38... Kc6 {[%clk 0:01:38.1]} 39. f3 {[%clk
0:00:24.3]} 39... Rc4 {[%clk 0:01:38.5]} 40. Ne1 {[%clk 0:00:19.3]} 40... d4
{[%clk 0:01:35.3]} 41. Kf2 {[%clk 0:00:19.3]} 41... Bxc2 {[%clk 0:01:24.6]} 42.
Nxc2 {[%clk 0:00:19.4]} 42... d3 {[%clk 0:01:26]} 43. Na3 {[%clk 0:00:15.8]}
43... Rb4 {[%clk 0:01:26.7]} 44. Ke3 {[%clk 0:00:15.5]} 44... d2 {[%clk
0:01:23.4]} 45. Kd3 {[%clk 0:00:15.7]} 45... Rb3 {[%clk 0:01:21.8]} 46. Kc2
{[%clk 0:00:16.4]} 46... Rb2+ {[%clk 0:01:13.2]} 47. Kxc3 {[%clk 0:00:16.4]}
47... d1=Q {[%clk 0:01:14.8]} 48. Rxd1 {[%clk 0:00:16.6]} 48... Rxg2 {[%clk
0:01:16.7]} 49. Bf4 {[%clk 0:00:17.2]} 49... Rf2 {[%clk 0:01:17.9]} 50. Rd3
{[%clk 0:00:17.1]} 50... Ra2 {[%clk 0:01:19.2]} 51. Nc4 {[%clk 0:00:17.7]} 51...
Kc5 {[%clk 0:01:19.2]} 52. Be3+ {[%clk 0:00:16.7]} 52... Kb5 {[%clk 0:01:19.6]}
53. Rd6 {[%clk 0:00:17.7]} 53... Re2 {[%clk 0:01:18.3]} 54. Rb6+ {[%clk
0:00:18.6]} 54... Ka4 {[%clk 0:01:18.8]} 55. Rb4# {[%clk 0:00:20.2]} 1-0

[Event "*** Titled Tuesday Blitz"]
[Site "Chess.com"]
[Date "2019.11.05"]
[Round "4"]
[White "PowerThinking2650"]
[Black "Eloist"]
[Result "0-1"]
[WhiteElo "2312"]
[BlackElo "2260"]
[TimeControl "180+2"]
[EndTime "13:52:35 PST"]
[Termination "Eloist won on time"]

1. e4 {[%clk 0:02:59.7]} 1... e6 {[%clk 0:03:00.4]} 2. d4 {[%clk 0:03:00.2]}
2... d5 {[%clk 0:03:01.3]} 3. Nd2 {[%clk 0:03:01.3]} 3... Nf6 {[%clk 0:03:02]}
4. e5 {[%clk 0:03:02.5]} 4... Nfd7 {[%clk 0:03:02.9]} 5. Bd3 {[%clk 0:03:04]}
5... c5 {[%clk 0:03:03.9]} 6. c3 {[%clk 0:03:05.5]} 6... b6 {[%clk 0:03:05.1]}
7. Ne2 {[%clk 0:03:06.9]} 7... Ba6 {[%clk 0:03:06.1]} 8. Bb1 {[%clk 0:03:07.8]}
8... Nc6 {[%clk 0:03:06]} 9. Nf3 {[%clk 0:03:06.7]} 9... cxd4 {[%clk 0:03:05.1]}
10. cxd4 {[%clk 0:03:07.3]} 10... Bb4+ {[%clk 0:03:05.9]} 11. Bd2 {[%clk
0:03:07.7]} 11... Qe7 {[%clk 0:03:07.2]} 12. O-O {[%clk 0:02:47]} 12... Bxd2
{[%clk 0:03:07.3]} 13. Qxd2 {[%clk 0:02:45.3]} 13... Qb4 {[%clk 0:03:08.4]} 14.
Qxb4 {[%clk 0:01:38.5]} 14... Nxb4 {[%clk 0:03:06.9]} 15. Re1 {[%clk 0:01:39.1]}
15... Nd3 {[%clk 0:02:57.7]} 16. Bxd3 {[%clk 0:01:36]} 16... Bxd3 {[%clk
0:02:59.6]} 17. Rac1 {[%clk 0:01:27]} 17... Ke7 {[%clk 0:02:51.5]} 18. Nf4
{[%clk 0:01:26.1]} 18... Be4 {[%clk 0:02:45.2]} 19. Nd2 {[%clk 0:01:22.3]} 19...
Bf5 {[%clk 0:02:43.9]} 20. f3 {[%clk 0:01:12.9]} 20... g5 {[%clk 0:02:34.9]} 21.
Nh5 {[%clk 0:01:05.5]} 21... Bg6 {[%clk 0:02:35.6]} 22. g4 {[%clk 0:00:47.9]}
22... Bxh5 {[%clk 0:02:26.8]} 23. gxh5 {[%clk 0:00:48.9]} 23... Rac8 {[%clk
0:02:26.1]} 24. Kf2 {[%clk 0:00:49.3]} 24... f6 {[%clk 0:02:17]} 25. Nb3 {[%clk
0:00:34.3]} 25... Rhf8 {[%clk 0:02:08.7]} 26. Kg3 {[%clk 0:00:30.2]} 26... a5
{[%clk 0:01:55.4]} 27. a4 {[%clk 0:00:20.7]} 27... h6 {[%clk 0:01:50.7]} 28. h4
{[%clk 0:00:17.7]} 28... gxh4+ {[%clk 0:01:43.8]} 29. Kxh4 {[%clk 0:00:18.8]}
29... fxe5 {[%clk 0:01:45]} 30. Rxc8 {[%clk 0:00:17.9]} 30... Rxc8 {[%clk
0:01:43.3]} 31. dxe5 {[%clk 0:00:19.1]} 31... Rc4+ {[%clk 0:01:41.5]} 32. Kg3
{[%clk 0:00:20.2]} 32... Rb4 {[%clk 0:01:40.9]} 33. Nd2 {[%clk 0:00:19.3]} 33...
Rxb2 {[%clk 0:01:38.4]} 34. Nf1 {[%clk 0:00:19.8]} 34... Rb4 {[%clk 0:01:31.7]}
35. Nh2 {[%clk 0:00:20.3]} 35... Rxa4 {[%clk 0:01:31.6]} 36. Ng4 {[%clk
0:00:21.5]} 36... b5 {[%clk 0:01:21.3]} 37. Nxh6 {[%clk 0:00:22.1]} 37... b4
{[%clk 0:01:22.4]} 38. Kg4 {[%clk 0:00:19.1]} 38... b3+ {[%clk 0:01:22.3]} 39.
Kg5 {[%clk 0:00:20.4]} 39... b2 {[%clk 0:01:22.4]} 40. Rb1 {[%clk 0:00:21.2]}
40... Rb4 {[%clk 0:01:22.3]} 41. f4 {[%clk 0:00:21.8]} 41... a4 {[%clk
0:01:22.8]} 42. Ng4 {[%clk 0:00:16.4]} 42... a3 {[%clk 0:01:21.8]} 43. h6 {[%clk
0:00:17.4]} 43... Nf8 {[%clk 0:01:17.8]} 44. f5 {[%clk 0:00:07.6]} 44... exf5
{[%clk 0:01:17.5]} 45. Ne3 {[%clk 0:00:08.5]} 45... a2 {[%clk 0:01:15.8]} 46.
Nxd5+ {[%clk 0:00:09.1]} 46... Ke6 {[%clk 0:01:16.5]} 47. Nf4+ {[%clk
0:00:06.1]} 47... Rxf4 {[%clk 0:01:15.6]} 48. Rxb2 {[%clk 0:00:05.2]} 48... Rg4+
{[%clk 0:01:16.5]} 49. Kh5 {[%clk 0:00:05.7]} 49... a1=Q {[%clk 0:01:15.9]} 0-1

[Event "*** Titled Tuesday Blitz"]
[Site "Chess.com"]
[Date "2019.11.05"]
[Round "4"]
[White "DishonorOnYourCow"]
[Black "WPWPWP-2015"]
[Result "1-0"]
[WhiteElo "2259"]
[BlackElo "2479"]
[TimeControl "180+2"]
[EndTime "13:52:49 PST"]
[Termination "DishonorOnYourCow won on time"]

1. d4 {[%clk 0:03:01.9]} 1... Nf6 {[%clk 0:02:57.6]} 2. c4 {[%clk 0:03:02.4]}
2... e6 {[%clk 0:02:56.8]} 3. Nf3 {[%clk 0:03:03.2]} 3... b6 {[%clk 0:02:57.1]}
4. g3 {[%clk 0:03:03.4]} 4... Ba6 {[%clk 0:02:57.7]} 5. b3 {[%clk 0:03:01.9]}
5... Bb4+ {[%clk 0:02:58]} 6. Bd2 {[%clk 0:02:51.5]} 6... Be7 {[%clk 0:02:58.2]}
7. Bg2 {[%clk 0:02:51.4]} 7... O-O {[%clk 0:02:58.8]} 8. O-O {[%clk 0:02:43.3]}
8... d5 {[%clk 0:02:59.3]} 9. cxd5 {[%clk 0:02:31.2]} 9... exd5 {[%clk 0:02:58]}
10. Ne5 {[%clk 0:02:28.5]} 10... Re8 {[%clk 0:02:54.8]} 11. Nc3 {[%clk
0:02:25.8]} 11... c6 {[%clk 0:02:52.1]} 12. Rc1 {[%clk 0:02:24.9]} 12... Nfd7
{[%clk 0:02:49.5]} 13. Nxd7 {[%clk 0:02:04.2]} 13... Nxd7 {[%clk 0:02:49.1]} 14.
Re1 {[%clk 0:02:06.1]} 14... Nf6 {[%clk 0:02:47.2]} 15. Bf4 {[%clk 0:01:55.2]}
15... Ba3 {[%clk 0:02:46]} 16. Rc2 {[%clk 0:01:54.4]} 16... Bb4 {[%clk
0:02:44.2]} 17. Be5 {[%clk 0:01:44.9]} 17... Nd7 {[%clk 0:02:39.7]} 18. Bf4
{[%clk 0:01:36.6]} 18... Nf6 {[%clk 0:02:40.6]} 19. Be5 {[%clk 0:01:34.9]} 19...
Ne4 {[%clk 0:02:41.4]} 20. Bxe4 {[%clk 0:01:27.9]} 20... dxe4 {[%clk 0:02:42.1]}
21. a3 {[%clk 0:01:23.1]} 21... Bxa3 {[%clk 0:02:33.5]} 22. Qa1 {[%clk
0:01:16.2]} 22... f6 {[%clk 0:02:05.4]} 23. Qxa3 {[%clk 0:01:10.8]} 23... fxe5
{[%clk 0:02:05.9]} 24. Qxa6 {[%clk 0:01:11.6]} 24... exd4 {[%clk 0:02:06.8]} 25.
Rd1 {[%clk 0:01:07.7]} 25... c5 {[%clk 0:02:06.5]} 26. Na4 {[%clk 0:00:59.7]}
26... Qf6 {[%clk 0:01:55.6]} 27. b4 {[%clk 0:00:52.4]} 27... Rf8 {[%clk
0:01:29.1]} 28. Rf1 {[%clk 0:00:53]} 28... e3 {[%clk 0:01:22.5]} 29. f3 {[%clk
0:00:45.9]} 29... Qf5 {[%clk 0:00:59.1]} 30. Rfc1 {[%clk 0:00:36.3]} 30... Rad8
{[%clk 0:00:54.5]} 31. Nb2 {[%clk 0:00:28.7]} 31... cxb4 {[%clk 0:00:39.5]} 32.
Qc4+ {[%clk 0:00:28.1]} 32... Kh8 {[%clk 0:00:40.7]} 33. Qxb4 {[%clk 0:00:26.7]}
33... h5 {[%clk 0:00:33.9]} 34. Nd3 {[%clk 0:00:19.9]} 34... h4 {[%clk
0:00:34.7]} 35. Rc4 {[%clk 0:00:16]} 35... Qf6 {[%clk 0:00:27.8]} 36. g4 {[%clk
0:00:16.2]} 36... a5 {[%clk 0:00:23.9]} 37. Qa3 {[%clk 0:00:15.6]} 37... Kh7
{[%clk 0:00:10.2]} 38. Rc6 {[%clk 0:00:16]} 38... Qg5 {[%clk 0:00:07.9]} 39.
Rxb6 {[%clk 0:00:15.6]} 39... Rxf3 {[%clk 0:00:04.3]} 40. exf3 {[%clk
0:00:15.2]} 40... e2 {[%clk 0:00:05.8]} 41. Re1 {[%clk 0:00:13.1]} 41... Qe3+
{[%clk 0:00:04.7]} 42. Kg2 {[%clk 0:00:14.3]} 42... h3+ {[%clk 0:00:02.9]} 43.
Kg3 {[%clk 0:00:15.3]} 43... Rc8 {[%clk 0:00:02.7]} 44. Rb3 {[%clk 0:00:11.5]}
1-0

[Event "*** Titled Tuesday Blitz"]
[Site "Chess.com"]
[Date "2019.11.05"]
[Round "4"]
[White "Alex_Terzi"]
[Black "joshdaruca"]
[Result "0-1"]
[WhiteElo "2507"]
[BlackElo "2693"]
[TimeControl "180+2"]
[EndTime "13:52:52 PST"]
[Termination "joshdaruca won by checkmate"]

1. e4 {[%clk 0:03:01.9]} 1... c5 {[%clk 0:02:56.9]} 2. Nc3 {[%clk 0:03:01.7]}
2... g6 {[%clk 0:02:57.2]} 3. f4 {[%clk 0:03:02.2]} 3... Bg7 {[%clk 0:02:58]} 4.
Nf3 {[%clk 0:03:03.2]} 4... Nc6 {[%clk 0:02:59.6]} 5. Bb5 {[%clk 0:03:02.4]}
5... Nd4 {[%clk 0:02:58.5]} 6. Nxd4 {[%clk 0:03:00.7]} 6... cxd4 {[%clk
0:02:59]} 7. Ne2 {[%clk 0:03:02.1]} 7... a6 {[%clk 0:02:59.3]} 8. Bd3 {[%clk
0:03:02.9]} 8... d6 {[%clk 0:02:57.7]} 9. O-O {[%clk 0:03:01.5]} 9... Nf6 {[%clk
0:02:59.1]} 10. b3 {[%clk 0:02:53.3]} 10... O-O {[%clk 0:02:59.1]} 11. Bb2
{[%clk 0:02:54.4]} 11... e5 {[%clk 0:03:00.6]} 12. fxe5 {[%clk 0:02:46.1]} 12...
dxe5 {[%clk 0:03:02.5]} 13. Ba3 {[%clk 0:02:47.4]} 13... Re8 {[%clk 0:03:03.1]}
14. Kh1 {[%clk 0:02:36.7]} 14... b5 {[%clk 0:02:58.3]} 15. Ng1 {[%clk
0:02:34.4]} 15... Be6 {[%clk 0:02:39.2]} 16. Nf3 {[%clk 0:02:30.9]} 16... Nd7
{[%clk 0:02:40.4]} 17. Bd6 {[%clk 0:02:26.2]} 17... Qb6 {[%clk 0:02:39.4]} 18.
Ba3 {[%clk 0:02:25.8]} 18... h6 {[%clk 0:02:40.3]} 19. Qe2 {[%clk 0:02:20.3]}
19... Nc5 {[%clk 0:02:40.4]} 20. h3 {[%clk 0:01:55.8]} 20... b4 {[%clk
0:01:37.2]} 21. Bb2 {[%clk 0:01:55.2]} 21... a5 {[%clk 0:01:39.1]} 22. Nh2
{[%clk 0:01:26.4]} 22... a4 {[%clk 0:01:37.9]} 23. Ng4 {[%clk 0:01:22.8]} 23...
Bxg4 {[%clk 0:01:26.7]} 24. Qxg4 {[%clk 0:01:23.2]} 24... Nxd3 {[%clk
0:01:27.6]} 25. cxd3 {[%clk 0:01:24.1]} 25... a3 {[%clk 0:01:29]} 26. Bc1 {[%clk
0:01:19.5]} 26... Ra7 {[%clk 0:01:23.7]} 27. Qf3 {[%clk 0:01:04.7]} 27... Re6
{[%clk 0:01:21.2]} 28. Kh2 {[%clk 0:01:04.3]} 28... Rf6 {[%clk 0:01:20.5]} 29.
Qe2 {[%clk 0:01:05.7]} 29... Rxf1 {[%clk 0:01:22.1]} 30. Qxf1 {[%clk 0:01:07.6]}
30... Rc7 {[%clk 0:01:22.3]} 31. Rb1 {[%clk 0:01:02.3]} 31... Rc2 {[%clk
0:01:20.1]} 32. Ra1 {[%clk 0:01:03.4]} 32... Qf6 {[%clk 0:01:21]} 33. Qd1 {[%clk
0:00:53]} 33... Qc6 {[%clk 0:01:18.2]} 34. Qf1 {[%clk 0:00:50.3]} 34... Bf6
{[%clk 0:01:15.5]} 35. Qd1 {[%clk 0:00:42.3]} 35... Kg7 {[%clk 0:01:09.1]} 36.
Qf1 {[%clk 0:00:42.4]} 36... Bg5 {[%clk 0:01:07.3]} 37. Qd1 {[%clk 0:00:42.9]}
37... h5 {[%clk 0:01:04.4]} 38. g3 {[%clk 0:00:35.3]} 38... h4 {[%clk
0:00:50.5]} 39. gxh4 {[%clk 0:00:29.2]} 39... Bxh4 {[%clk 0:00:44.2]} 40. Qf1
{[%clk 0:00:30.1]} 40... Bg5 {[%clk 0:00:45]} 41. Qe1 {[%clk 0:00:29.7]} 41...
Qc3 {[%clk 0:00:36.9]} 42. Kg3 {[%clk 0:00:15.7]} 42... Bf4+ {[%clk 0:00:22.5]}
43. Kf3 {[%clk 0:00:16.2]} 43... Qxa1 {[%clk 0:00:22.6]} 44. Qd1 {[%clk
0:00:15.3]} 44... Rxc1 {[%clk 0:00:21.5]} 45. Qe2 {[%clk 0:00:16.9]} 45... Rf1+
{[%clk 0:00:22.2]} 46. Kg4 {[%clk 0:00:18.3]} 46... Rg1+ {[%clk 0:00:22.9]} 47.
Kh4 {[%clk 0:00:19.5]} 47... Bg5# {[%clk 0:00:23.3]} 0-1

[Event "*** Titled Tuesday Blitz"]
[Site "Chess.com"]
[Date "2019.11.05"]
[Round "4"]
[White "NTBT_DHS"]
[Black "PlotnikovPavel"]
[Result "1-0"]
[WhiteElo "2659"]
[BlackElo "2442"]
[TimeControl "180+2"]
[EndTime "13:52:56 PST"]
[Termination "NTBT_DHS won by resignation"]

1. d4 {[%clk 0:03:01.9]} 1... e6 {[%clk 0:02:50.2]} 2. c4 {[%clk 0:03:02.3]}
2... f5 {[%clk 0:02:49.8]} 3. g3 {[%clk 0:03:02.8]} 3... Nf6 {[%clk 0:02:50.5]}
4. Bg2 {[%clk 0:03:04.1]} 4... Bb4+ {[%clk 0:02:51.4]} 5. Bd2 {[%clk 0:03:04.8]}
5... Qe7 {[%clk 0:02:51.7]} 6. Qb3 {[%clk 0:03:04.7]} 6... Nc6 {[%clk
0:02:50.4]} 7. e3 {[%clk 0:03:02.2]} 7... O-O {[%clk 0:02:50.7]} 8. Ne2 {[%clk
0:03:01.7]} 8... Ne4 {[%clk 0:02:50.3]} 9. a3 {[%clk 0:02:49.1]} 9... Bxd2+
{[%clk 0:02:46.6]} 10. Nxd2 {[%clk 0:02:51]} 10... Nxd2 {[%clk 0:02:47.3]} 11.
Kxd2 {[%clk 0:02:52.9]} 11... a5 {[%clk 0:02:39.1]} 12. h4 {[%clk 0:02:45]}
12... a4 {[%clk 0:02:40]} 13. Qc3 {[%clk 0:02:42.6]} 13... e5 {[%clk 0:02:30.9]}
14. Bxc6 {[%clk 0:02:41]} 14... dxc6 {[%clk 0:02:28.8]} 15. dxe5 {[%clk
0:02:41.8]} 15... Rd8+ {[%clk 0:02:19.9]} 16. Ke1 {[%clk 0:02:42.7]} 16... c5
{[%clk 0:02:14.7]} 17. f4 {[%clk 0:02:41.4]} 17... b6 {[%clk 0:02:15.7]} 18. Kf2
{[%clk 0:02:42.4]} 18... Bb7 {[%clk 0:02:13]} 19. Rhd1 {[%clk 0:02:42.2]} 19...
Qe6 {[%clk 0:02:11.5]} 20. Qc2 {[%clk 0:02:41.1]} 20... Qc6 {[%clk 0:02:10.3]}
21. e4 {[%clk 0:02:36.5]} 21... fxe4 {[%clk 0:02:10.3]} 22. Ke3 {[%clk
0:02:37.1]} 22... Qg6 {[%clk 0:01:53.1]} 23. Rxd8+ {[%clk 0:02:35.6]} 23... Rxd8
{[%clk 0:01:53.2]} 24. Rd1 {[%clk 0:02:37.5]} 24... Rf8 {[%clk 0:01:45.6]} 25.
Qd2 {[%clk 0:01:22.5]} 25... Qg4 {[%clk 0:01:44.3]} 26. Rf1 {[%clk 0:01:23.1]}
26... Bc6 {[%clk 0:01:36.9]} 27. Qd1 {[%clk 0:01:17]} 27... h6 {[%clk
0:01:31.4]} 28. Qd2 {[%clk 0:01:12.6]} 28... Kh7 {[%clk 0:01:29.5]} 29. Qd1
{[%clk 0:01:10.5]} 29... Rf7 {[%clk 0:01:30.6]} 30. h5 {[%clk 0:01:05.3]} 30...
Rd7 {[%clk 0:01:27.5]} 31. Qc2 {[%clk 0:01:02.7]} 31... Rd3+ {[%clk 0:01:27.2]}
32. Kf2 {[%clk 0:01:04.1]} 32... Qxh5 {[%clk 0:01:08.5]} 33. Ke1 {[%clk
0:00:59]} 33... Qg4 {[%clk 0:00:58.8]} 34. Rf2 {[%clk 0:00:54.6]} 34... Be8
{[%clk 0:00:54.4]} 35. Nc1 {[%clk 0:00:52]} 35... Re3+ {[%clk 0:00:51.2]} 36.
Re2 {[%clk 0:00:50.4]} 36... Qxg3+ {[%clk 0:00:51.1]} 37. Kd2 {[%clk 0:00:51.8]}
37... Rxe2+ {[%clk 0:00:38.4]} 38. Nxe2 {[%clk 0:00:53.7]} 38... Qf3 {[%clk
0:00:38.8]} 39. Qc3 {[%clk 0:00:54.4]} 39... Bh5 {[%clk 0:00:25.9]} 40. Qxf3
{[%clk 0:00:50.6]} 40... exf3 {[%clk 0:00:27.1]} 41. Ng3 {[%clk 0:00:51.4]}
41... Bg4 {[%clk 0:00:26.8]} 42. Ke3 {[%clk 0:00:52.9]} 42... h5 {[%clk
0:00:27.9]} 43. Ne4 {[%clk 0:00:53]} 43... h4 {[%clk 0:00:26.4]} 44. Nf2 {[%clk
0:00:47.1]} 44... Bh5 {[%clk 0:00:22.5]} 45. f5 {[%clk 0:00:48.5]} 45... g5
{[%clk 0:00:21.2]} 46. Ne4 {[%clk 0:00:36]} 46... g4 {[%clk 0:00:20.2]} 47. Nf6+
{[%clk 0:00:36.9]} 47... Kh6 {[%clk 0:00:20.4]} 48. Nxh5 {[%clk 0:00:38.3]}
48... g3 {[%clk 0:00:16.1]} 49. Nxg3 {[%clk 0:00:34.7]} 49... hxg3 {[%clk
0:00:16.1]} 50. Kxf3 {[%clk 0:00:35.6]} 1-0

[Event "*** Titled Tuesday Blitz"]
[Site "Chess.com"]
[Date "2019.11.05"]
[Round "4"]
[White "Adham_Fawzy"]
[Black "ShahMatKanal"]
[Result "1-0"]
[WhiteElo "2726"]
[BlackElo "2528"]
[TimeControl "180+2"]
[EndTime "13:53:00 PST"]
[Termination "Adham_Fawzy won on time"]

1. e4 {[%clk 0:03:01.9]} 1... c5 {[%clk 0:02:59.8]} 2. Nf3 {[%clk 0:03:02]} 2...
Nc6 {[%clk 0:03:01]} 3. Bb5 {[%clk 0:03:02.2]} 3... g6 {[%clk 0:02:59.9]} 4. O-O
{[%clk 0:03:03]} 4... Bg7 {[%clk 0:03:00.3]} 5. Re1 {[%clk 0:03:04.3]} 5... e5
{[%clk 0:02:56.7]} 6. Bxc6 {[%clk 0:02:57.5]} 6... dxc6 {[%clk 0:02:57.6]} 7. d3
{[%clk 0:02:56.9]} 7... Bg4 {[%clk 0:02:47.5]} 8. Nbd2 {[%clk 0:02:56.9]} 8...
Nf6 {[%clk 0:02:44.9]} 9. b3 {[%clk 0:02:57.3]} 9... O-O {[%clk 0:02:42.8]} 10.
Bb2 {[%clk 0:02:57.7]} 10... Nd7 {[%clk 0:02:42.2]} 11. a4 {[%clk 0:02:58.7]}
11... a5 {[%clk 0:02:35.5]} 12. h3 {[%clk 0:02:56.9]} 12... Bxf3 {[%clk
0:02:36.6]} 13. Qxf3 {[%clk 0:02:55.7]} 13... Re8 {[%clk 0:02:27.2]} 14. Nc4
{[%clk 0:02:50.4]} 14... Nf8 {[%clk 0:02:24.4]} 15. Qg3 {[%clk 0:02:48.2]} 15...
Qc7 {[%clk 0:02:11.9]} 16. Bc3 {[%clk 0:02:45.2]} 16... b6 {[%clk 0:02:11.4]}
17. Qh2 {[%clk 0:02:28.1]} 17... f6 {[%clk 0:02:09.4]} 18. Qg3 {[%clk 0:02:18]}
18... Ne6 {[%clk 0:02:02.2]} 19. Qg4 {[%clk 0:02:12.2]} 19... Rad8 {[%clk
0:01:53.7]} 20. Rf1 {[%clk 0:02:09.7]} 20... Nf4 {[%clk 0:01:39.4]} 21. Kh2
{[%clk 0:02:01.8]} 21... h5 {[%clk 0:01:35.2]} 22. Qf3 {[%clk 0:02:02]} 22...
Rb8 {[%clk 0:01:17.4]} 23. g3 {[%clk 0:01:56.2]} 23... Ne6 {[%clk 0:01:17.4]}
24. Qe3 {[%clk 0:01:57.1]} 24... Nd4 {[%clk 0:01:08.3]} 25. Ra2 {[%clk
0:01:56.4]} 25... Kh7 {[%clk 0:01:03.8]} 26. Kg2 {[%clk 0:01:54.5]} 26... Bh6
{[%clk 0:01:03.9]} 27. Qe1 {[%clk 0:01:43.4]} 27... f5 {[%clk 0:00:52.2]} 28.
exf5 {[%clk 0:01:29]} 28... gxf5 {[%clk 0:00:52.8]} 29. Qd1 {[%clk 0:01:29.5]}
29... Kg6 {[%clk 0:00:40.8]} 30. Re1 {[%clk 0:01:26.3]} 30... Bg7 {[%clk
0:00:31.6]} 31. Bd2 {[%clk 0:01:16.1]} 31... Qd7 {[%clk 0:00:31.5]} 32. Be3
{[%clk 0:01:12]} 32... Qd5+ {[%clk 0:00:32.2]} 33. f3 {[%clk 0:01:13]} 33... e4
{[%clk 0:00:28.4]} 34. dxe4 {[%clk 0:01:12.9]} 34... fxe4 {[%clk 0:00:29.3]} 35.
f4 {[%clk 0:01:14.2]} 35... Nf3 {[%clk 0:00:27.8]} 36. Rf1 {[%clk 0:01:12.8]}
36... Bd4 {[%clk 0:00:25.1]} 37. Qe2 {[%clk 0:01:07.2]} 37... Rg8 {[%clk
0:00:19.7]} 38. Rd1 {[%clk 0:00:58.5]} 38... Kh7 {[%clk 0:00:20.1]} 39. c3
{[%clk 0:00:55.2]} 39... Rxg3+ {[%clk 0:00:08.5]} 40. Kxg3 {[%clk 0:00:57.1]}
40... Qg8+ {[%clk 0:00:06.2]} 41. Kf2 {[%clk 0:00:53.4]} 41... Bf6 {[%clk
0:00:07.4]} 42. Rd7+ {[%clk 0:00:50.6]} 42... Kh8 {[%clk 0:00:08]} 43. Kf1
{[%clk 0:00:49]} 43... Qg3 {[%clk 0:00:03.9]} 44. Rd6 {[%clk 0:00:40.8]} 44...
Rg8 {[%clk 0:00:02.4]} 45. Qf2 {[%clk 0:00:40.4]} 45... Qxh3+ {[%clk 0:00:03.1]}
46. Ke2 {[%clk 0:00:40.8]} 46... Ng1+ {[%clk 0:00:03.9]} 47. Kd1 {[%clk
0:00:40.3]} 47... Qg4+ {[%clk 0:00:04.4]} 48. Kc1 {[%clk 0:00:41.1]} 48... Bxc3
{[%clk 0:00:05.3]} 49. Rh6+ {[%clk 0:00:38.5]} 49... Kg7 {[%clk 0:00:06.2]} 50.
Rxc6 {[%clk 0:00:38.8]} 50... Rd8 {[%clk 0:00:06.2]} 51. Qxg1 {[%clk 0:00:39]}
1-0